Cogmind - Beta 13 @@@ ROGUE MODE // 2024.03.19 @ 22:44:26 Player: Rohain Result: Self-destructed Performance ------------- Evolutions (3) 1500 Regions Visited (10) 2000 Robots Destroyed (67) 335 Value Destroyed (2217) 2217 Prototype IDs (11) 220 Alien Tech Used (0) 0 Bonus (446) 446 TOTAL SCORE: 6718 Bonus ------- High Alert Combat Kills 83 Follower Combat Kills 363 Cogmind --------- Core Integrity 368/700 Matter 277/300 Energy 275/275 System Corruption 3% Temperature Cool (0) Movement Core (500) Ox9 Location -7/Zion Parts ------- > --- POWER (1) -------- Deuterium Engine > --- PROPULSION (4) --- (None) > --- UTILITY (6) ------ Medium Storage Unit Signal Interpreter Improved Targeting Computer Core Analyzer Core Analyzer > --- WEAPON (2) ------- Advanced Beam Rifle Plasma Cannon > --- INVENTORY (10) --- Signal Interpreter Improved Weapon Shielding Heavy Particle Gun Heavy Rocket Launcher Peak State ------------ > --- POWER ------------ Heavy Ion Engine > --- PROPULSION ------- Improved Aluminum Leg Improved Aluminum Leg Improved Aluminum Leg Carbon-fiber Leg > --- UTILITY ---------- Improved Heat Sink Improved Cooling System Medium Storage Unit Signal Interpreter Improved Targeting Computer Core Analyzer > --- WEAPON ----------- Heavy Particle Gun Ion Burst Cannon > --- INVENTORY -------- Aluminum Leg Aluminum Leg Improved Aluminum Leg Signal Interpreter Precision Beam Rifle Precision Beam Rifle Advanced Beam Rifle Advanced Beam Rifle Gatling Laser Improved Spread Laser [Rating: 40] Favorites ----------- Power Light Ion Engine Engine Light Ion Engine Power Core Fission Core Propulsion Aluminum Leg Leg Aluminum Leg Utility Core Analyzer Device Improved Heat Sink Storage Medium Storage Unit Processor Core Analyzer Protection Light Armor Plating Weapon Assault Rifle Energy Gun Advanced Beam Rifle Energy Cannon Ion Burst Cannon Ballistic Gun Assault Rifle Launcher Heavy Rocket Launcher Build | -11 -10 -10 -10 -9 -8 -8 -7 -7 -7 -7 ------- Run | Yrd Mat Min Exi Min Mat Sto Fac Low Low Zio Slots Evolved 6 | . . . . . 4 . 2 . . . Power . | . . . . . . . . . . . Propulsion 2 | . . . . . 2 . . . . . Utility 4 | . . . . . 2 . 2 . . . Weapon . | . . . . . . . . . . . Parts Attached 70 | 6 1 1 1 4 11 23 10 5 8 . Power 12 | 1 . 1 . 2 1 1 1 1 4 . Engine 8 | 1 . 1 . 1 . 1 1 . 3 . Core 4 | . . . . 1 1 . . 1 1 . Reactor . | . . . . . . . . . . . Propulsion 18 | 2 . . . 1 4 5 4 1 1 . Treads . | . . . . . . . . . . . Leg 18 | 2 . . . 1 4 5 4 1 1 . Wheel . | . . . . . . . . . . . Hover . | . . . . . . . . . . . Flight . | . . . . . . . . . . . Utility 15 | 1 1 . 1 1 3 4 3 1 . . Device 7 | . . . . 1 2 3 1 . . . Storage 2 | 1 . . 1 . . . . . . . Processor 5 | . . . . . 1 1 2 1 . . Hackware . | . . . . . . . . . . . Protection 1 | . 1 . . . . . . . . . Artifact . | . . . . . . . . . . . Weapon 25 | 2 . . . . 3 13 2 2 3 . Energy Gun 14 | . . . . . 2 7 1 2 2 . Energy Cannon 7 | . . . . . 1 5 . . 1 . Ballistic Gun 2 | 2 . . . . . . . . . . Ballistic Cannon . | . . . . . . . . . . . Launcher 2 | . . . . . . 1 1 . . . Special Weapon . | . . . . . . . . . . . Impact Weapon . | . . . . . . . . . . . Slashing Weapon . | . . . . . . . . . . . Piercing Weapon . | . . . . . . . . . . . Special Melee Weapon . | . . . . . . . . . . . Unidentified Prototypes 11 | . . . . . . 10 1 . . . Corrupted Parts 1 | . . . . . . 1 . . . . System Corruption 12 | . . . . . . 12 . . . . Parts Lost 23 | . . . . 1 1 2 5 4 10 . Power 6 | . . . . . . 1 1 . 4 . Propulsion 8 | . . . . . . . 3 3 2 . Utility 5 | . . . . 1 1 1 . 1 1 . Weapon 4 | . . . . . . . 1 . 3 . Highest Loss Streak 8 | . . . . 1 1 2 2 3 8 . To Critical Strikes . | . . . . . . . . . . . Average Slot Usage (%) 92 | . 88 100 100 99 86 99 97 93 70 61 Engine 6 | . 14 14 14 14 . . 6 . 6 7 Core 2 | . . . . . 9 8 . 6 . . Leg 25 | . 28 28 28 28 36 36 29 23 5 . Device 8 | . . . . 2 21 17 13 7 3 . Storage 9 | . 14 14 14 14 9 9 7 7 7 7 Processor 14 | . . . . . . 9 22 30 30 30 Protection 3 | . 3 14 14 10 . . . . . . Energy Gun 7 | . . . . . 8 14 6 15 11 7 Energy Cannon 2 | . . . . . . 3 6 . 2 7 Ballistic Gun 8 | . 28 28 28 28 3 . . . . . Naked Turns . | . . . . . . . . . . . Heaviest Build 36 | 12 15 15 20 27 31 35 36 30 28 28 Greatest Support 54 | 20 20 20 20 20 40 54 54 40 25 3 Greatest Overweight (x) 9 | . . . . 1 . . . 2 9 9 Average Overweight (x) . | . . . . . . . . . 3 9 Largest Inventory Capacity 10 | 8 8 8 10 10 10 10 10 10 10 10 Average Capacity 9 | 6 8 8 8 10 10 10 10 10 10 10 Most Carried 10 | 3 4 8 8 10 10 10 10 10 10 4 Average Carried 8 | 1 3 6 8 9 9 9 9 9 7 4 Final Capacity 10 | 8 8 8 10 10 10 10 10 10 10 10 Final Carried 10 | 2 4 8 8 9 8 9 10 10 4 4 Class Distribution -------------------- 68% | Mutant 31% | Scavenger-Mutant Dominant Class ---------------- Mutant | -10/Materials Mutant | -10/Mines Mutant | -10/Exiles Mutant | -9/Mines Scavenger-Mutant | -8/Materials Mutant | -8/Storage Scavenger-Mutant | -7/Factory Scavenger-Mutant | -7/Lower Caves Mutant | -7/Lower Caves Mutant | -7/Zion Resources | -11 -10 -10 -10 -9 -8 -8 -7 -7 -7 -7 ----------- Run | Yrd Mat Min Exi Min Mat Sto Fac Low Low Zio Matter Collected 1243 | 180 115 242 . 111 108 240 109 73 65 . Remotely . | . . . . . . . . . . . Salvage Created 2440 | . 175 214 . 64 290 424 641 331 301 . Parts 126 | . 18 22 . 1 11 29 24 10 11 . Haulers Intercepted 1 | . 1 . . . . . . . . . Recyclers Shooed 1 | . 1 . . . . . . . . . Parts Field Recycled . | . . . . . . . . . . . Retrieved Matter . | . . . . . . . . . . . Parts Self-Destructed 25 | . . . . . . . . 10 15 . Prevented . | . . . . . . . . . . . Kills | -11 -10 -10 -10 -9 -8 -8 -7 -7 -7 -7 ------- Run | Yrd Mat Min Exi Min Mat Sto Fac Low Low Zio Combat Hostiles Destroyed 62 | . 6 8 . 5 5 6 19 6 7 . Guns 40 | . 6 8 . 5 5 5 . 6 5 . Cannons 18 | . . . . . . 1 17 . . . AOE 2 | . . . . . . . 2 . . . Classes Destroyed 16 | . 4 3 . 2 2 1 2 1 1 . Worker 2 | . . 2 . . . . . . . . Builder 2 | . . 1 . . . 1 . . . . Tunneler 1 | . 1 . . . . . . . . . Hauler 1 | . 1 . . . . . . . . . Recycler 1 | . . . . . . 1 . . . . Watcher 1 | . 1 . . . . . . . . . Swarmer 30 | . 6 6 . 1 . . 10 5 2 . Grunt 8 | . . 2 . . 2 . 4 . . . Brawler 1 | . . . . . 1 . . . . . Sentry 12 | . . . . . 2 6 2 1 1 . Demolisher 1 | . . . . 1 . . . . . . Specialist 1 | . . . . . . . 1 . . . Hunter 4 | . . . . . . . 2 . 2 . Programmer 2 | . . . . . . . . . 2 . Samaritan 1 | . . . . . . . . 1 . . Assembled 3 | . . . . 3 . . . . . . Best Kill Streak 4 | . 3 3 . 3 3 3 4 3 3 . Combat Bots Only 4 | . 3 3 . 3 3 1 4 3 3 . Max Kills in Single Turn 2 | . 1 1 . 1 1 1 2 2 1 . Gunslinging 1 | . . . . . . . . 1 . . Exploded 2 | . . . . . . . 2 . . . Melee . | . . . . . . . . . . . Uniques/NPCs Destroyed . | . . . . . . . . . . . Combat | -11 -10 -10 -10 -9 -8 -8 -7 -7 -7 -7 -------- Run | Yrd Mat Min Exi Min Mat Sto Fac Low Low Zio Hostile Shots Fired 445 | . 26 44 . 6 27 42 129 72 96 3 Missed 172 | . 14 9 . 2 10 13 57 35 30 2 Damage Taken 3639 | . 100 355 . 100 261 451 1044 416 893 19 Core 534 | . 32 42 . 18 67 43 53 28 251 . Absorbed by Shields . | . . . . . . . . . . . Regen/Repaired (Parts) 22 | . . . . . 22 . . . . . Core Remaining (%) 81 | 100 . . . 63 . 80 . . . . Volleys Fired 185 | . 21 25 . 7 21 29 36 22 24 . Largest 2 | . 2 2 . 2 2 2 2 2 2 . Hottest 155 | . 40 40 . 40 70 155 139 122 141 . Shots Fired 309 | . 42 50 . 14 27 52 38 42 42 2 Gun 254 | . 42 50 . 14 27 39 . 42 38 2 Cannon 53 | . . . . . . 13 36 . 4 . Launcher 2 | . . . . . . . 2 . . . Special . | . . . . . . . . . . . Kinetic 112 | . 42 50 . 14 6 . . . . . Thermal 187 | . . . . . 15 50 36 42 42 2 Explosive 2 | . . . . . . . 2 . . . Electromagnetic 8 | . . . . . 6 2 . . . . Robot Hit Streak 14 | . 6 5 . 6 10 8 5 5 14 1 Robot Miss Streak 5 | . 4 4 . 2 1 4 5 2 2 1 Penetration Max . | . . . . . . . . . . . Secondary Targets 9 | . . 4 . 1 1 . . 3 . . Max Gunslinging Chain 1 | . . 1 . 1 1 . . 1 . . Shots Hit Robots 194 | . 21 26 . 9 21 24 32 29 31 1 Core Hits 109 | . 10 14 . 7 8 12 31 16 10 1 Critical Kills . | . . . . . . . . . . . Critical Parts Destroyed . | . . . . . . . . . . . Critical Strikes 10 | . . . . . 1 1 . 7 1 . Burn 10 | . . . . . 1 1 . 7 1 . Melee Attacks . | . . . . . . . . . . . Impact . | . . . . . . . . . . . Slashing . | . . . . . . . . . . . Piercing . | . . . . . . . . . . . Sneak Attacks . | . . . . . . . . . . . Combat Hostiles . | . . . . . . . . . . . Follow-up Attacks . | . . . . . . . . . . . Damage Inflicted 4542 | . 290 329 . 106 380 614 1575 563 665 20 Guns 2688 | . 290 329 . 106 380 384 . 563 616 20 Cannons 1467 | . . . . . . 230 1188 . 49 . Explosions 387 | . . . . . . . 387 . . . Melee . | . . . . . . . . . . . Ramming . | . . . . . . . . . . . Kinetic 775 | . 290 329 . 106 50 . . . . . Thermal 3272 | . . . . . 222 614 1188 563 665 20 Explosive 387 | . . . . . . . 387 . . . Electromagnetic 108 | . . . . . 108 . . . . . Impact . | . . . . . . . . . . . Slashing . | . . . . . . . . . . . Piercing . | . . . . . . . . . . . Highest Corruption 12 | . . . . . . 12 2 2 3 3 Average Corruption 2 | . . . . . . 12 2 2 2 3 Corruption Purged . | . . . . . . . . . . . Corruption Blocked . | . . . . . . . . . . . Effects 36 | . . . . . . 1 4 11 11 9 Message Errors 5 | . . . . . . . . . 4 1 Matter Fused 8 | . . . . . . 1 1 1 4 1 Heat Flow Errors 5 | . . . . . . . 1 4 . . Energy Discharges 6 | . . . . . . . 2 1 1 2 Data Loss (minor) 5 | . . . . . . . . 2 . 3 Data Loss (major) 1 | . . . . . . . . 1 . . Misfires 2 | . . . . . . . . . . 2 Alerts 2 | . . . . . . . . . 2 . Weapon Failures 2 | . . . . . . . . 2 . . Overload Shots . | . . . . . . . . . . . Overflow Damage . | . . . . . . . . . . . Projectiles . | . . . . . . . . . . . Explosions . | . . . . . . . . . . . Melee . | . . . . . . . . . . . Knockbacks . | . . . . . . . . . . . Impact . | . . . . . . . . . . . Kinetic . | . . . . . . . . . . . Secondary . | . . . . . . . . . . . Self-Inflicted Damage 63 | . . . . . . . 63 . . . Shots 2 | . . . . . . . 2 . . . Rammed . | . . . . . . . . . . . Targets Rammed . | . . . . . . . . . . . Kicked . | . . . . . . . . . . . Crushed . | . . . . . . . . . . . Highest Temperature 197 | . . 9 . . 45 72 187 154 197 4 Average Temperature 36 | . . 4 . . 15 23 122 57 74 3 Received Heat Transfer 447 | . . 81 . . 108 63 123 48 24 . Siege Activations . | . . . . . . . . . . . Robots Corrupted . | . . . . . . . . . . . Combat Hostiles . | . . . . . . . . . . . Parts Fried . | . . . . . . . . . . . Impact Corruptions . | . . . . . . . . . . . Robots Melted 2 | . . . . . . . . . 2 . Combat Hostiles 2 | . . . . . . . . . 2 . Parts Melted 15 | . . . . . 1 2 1 9 2 . Heat Transferred 5955 | . . . . . 518 1026 1425 1665 1284 37 Parts Sabotaged . | . . . . . . . . . . . Parts Stolen . | . . . . . . . . . . . Parts Stripped . | . . . . . . . . . . . Power Chain Reactions . | . . . . . . . . . . . Alert | -11 -10 -10 -10 -9 -8 -8 -7 -7 -7 -7 ------- Run | Yrd Mat Min Exi Min Mat Sto Fac Low Low Zio Peak Influence 533 | . 217 294 . 61 198 456 533 . . . Initial 207 | . . 84 . . 23 83 207 . . . Average 217 | . 104 115 . 57 97 280 334 . . . Maximum Alert Level 2 | . 1 1 . . . 2 2 . . . Low Security (%) 51 | 100 70 91 . 100 100 20 18 . . . Level 1 30 | . 30 8 . . . 61 36 . . . Level 2 18 | . . . . . . 17 44 . . . Level 3 . | . . . . . . . . . . . Level 4 . | . . . . . . . . . . . Level 5 . | . . . . . . . . . . . High Security . | . . . . . . . . . . . Max Security . | . . . . . . . . . . . Squads Dispatched 14 | . 2 . . . 1 2 9 . . . Investigation 2 | . . . . . . . 2 . . . Extermination 2 | . . . . . . . 2 . . . Reinforcement 7 | . 2 . . . 1 2 2 . . . Assault 2 | . . . . . . . 2 . . . Garrison 1 | . . . . . . . 1 . . . Intercept . | . . . . . . . . . . . Searches Triggered . | . . . . . . . . . . . Construction Impeded 1 | . . . . . . 1 . . . . Haulers Reinforced . | . . . . . . . . . . . Active Scanning Responses . | . . . . . . . . . . . Cargo Convoy Interrupts 1 | . . . . . . . 1 . . . Stealth | -11 -10 -10 -10 -9 -8 -8 -7 -7 -7 -7 --------- Run | Yrd Mat Min Exi Min Mat Sto Fac Low Low Zio Distress Signals 6 | . 2 1 . . 1 2 . . . . Communications Jammed . | . . . . . . . . . . . Distress Signals . | . . . . . . . . . . . Times Spotted 111 | . 9 8 . 7 10 21 41 7 7 1 Peak Tracking Total 8 | . 4 3 . 3 4 4 8 3 3 . Tactical Retreats 7 | . 2 . . . 1 1 2 . . 1 Traps | -11 -10 -10 -10 -9 -8 -8 -7 -7 -7 -7 ------- Run | Yrd Mat Min Exi Min Mat Sto Fac Low Low Zio Traps Triggered 5 | . . . . . . . 5 . . . Indirectly . | . . . . . . . . . . . Trap Hack Attempts . | . . . . . . . . . . . Triggered . | . . . . . . . . . . . Disarmed . | . . . . . . . . . . . Reprogrammed . | . . . . . . . . . . . Reused . | . . . . . . . . . . . Traps Extracted . | . . . . . . . . . . . Installed . | . . . . . . . . . . . Triggered 1 | . . . . . . . 1 . . . Machines | -11 -10 -10 -10 -9 -8 -8 -7 -7 -7 -7 ---------- Run | Yrd Mat Min Exi Min Mat Sto Fac Low Low Zio Machines Disabled 8 | . . . . . . 4 3 . . 1 Max in Single Turn 1 | . . . . . . 1 1 . . 1 Garrison Access 1 | . . . . . . . 1 . . . Machines Repaired . | . . . . . . . . . . . Machines Dismantled . | . . . . . . . . . . . Machines Sabotaged . | . . . . . . . . . . . Overloaded Fab Kills . | . . . . . . . . . . . Hacking | -11 -10 -10 -10 -9 -8 -8 -7 -7 -7 -7 --------- Run | Yrd Mat Min Exi Min Mat Sto Fac Low Low Zio Machines Accessed 14 | . 1 1 . . 2 5 3 1 1 . Terminals 10 | . 1 1 . . 1 5 2 . . . Fabricators . | . . . . . . . . . . . Repair Stations 1 | . . . . . 1 . . . . . Recycling Units . | . . . . . . . . . . . Scanalyzers . | . . . . . . . . . . . Garrison Access 1 | . . . . . . . 1 . . . Total Hacks 31 | . 5 1 . . 5 12 6 1 1 . Successful 15 | . 2 1 . . 4 6 . 1 1 . Failed 15 | . 3 . . . 1 5 6 . . . Catastrophic 1 | . . . . . . . 1 . . . Database Lockouts 1 | . . . . . . 1 . . . . Manual 21 | . 5 1 . . 1 12 2 . . . Terminals 24 | . 5 1 . . 1 12 5 . . . Fabricators . | . . . . . . . . . . . Repair Stations 4 | . . . . . 4 . . . . . Recycling Units . | . . . . . . . . . . . Scanalyzers . | . . . . . . . . . . . Garrison Access 1 | . . . . . . . 1 . . . Terminal Hacks 5 | . 1 . . . . 2 . 1 1 . Record 1 | . . . . . . . . . 1 . Robot Analysis 1 | . . . . . . 1 . . . . Open Door 1 | . . . . . . . . 1 . . Locate Traps 1 | . . . . . . 1 . . . . Recall Investigation 1 | . 1 . . . . . . . . . Fabricator Hacks . | . . . . . . . . . . . Repair Station Hacks 4 | . . . . . 4 . . . . . Scan Component 2 | . . . . . 2 . . . . . Repair 2 | . . . . . 2 . . . . . Recycling Unit Hacks . | . . . . . . . . . . . Scanalyzer . | . . . . . . . . . . . Garrison Access Hacks . | . . . . . . . . . . . Unauthorized Hacks 6 | . 1 1 . . . 4 . . . . Terminals 6 | . 1 1 . . . 4 . . . . Botnet 6 | . 1 1 . . . 4 . . . . Fabricators . | . . . . . . . . . . . Repair Stations . | . . . . . . . . . . . Recycling Units . | . . . . . . . . . . . Scanalyzers . | . . . . . . . . . . . Garrison Access . | . . . . . . . . . . . Data Cores Recovered . | . . . . . . . . . . . Used . | . . . . . . . . . . . Hacking Detections 10 | . 1 1 . . 2 3 3 . . . Full Trace Events 1 | . . . . . . . 1 . . . Feedback Events . | . . . . . . . . . . . Feedback Blocked . | . . . . . . . . . . . Robot Schematics Acquired . | . . . . . . . . . . . Robots Built . | . . . . . . . . . . . Authchips . | . . . . . . . . . . . Time . | . . . . . . . . . . . Total Robot Build Rating . | . . . . . . . . . . . Part Schematics Acquired . | . . . . . . . . . . . Parts Built . | . . . . . . . . . . . Authchips . | . . . . . . . . . . . Time . | . . . . . . . . . . . Total Part Build Rating . | . . . . . . . . . . . Parts Repaired 2 | . . . . . 2 . . . . . Time 72 | . . . . . 72 . . . . . Parts Recycled . | . . . . . . . . . . . Recycled Matter . | . . . . . . . . . . . Retrieved Matter . | . . . . . . . . . . . Retrieved Components . | . . . . . . . . . . . Parts Scanalyzed . | . . . . . . . . . . . Part Schematics Acquired . | . . . . . . . . . . . Parts Damaged . | . . . . . . . . . . . Bothacking | -11 -10 -10 -10 -9 -8 -8 -7 -7 -7 -7 ------------ Run | Yrd Mat Min Exi Min Mat Sto Fac Low Low Zio Used RIF Installer . | . . . . . . . . . . . Robots Hacked . | . . . . . . . . . . . Non-combat . | . . . . . . . . . . . Combat . | . . . . . . . . . . . Robot Hacks Applied . | . . . . . . . . . . . Relay Couplers Released 3 | . . . . . . . 3 . . . Machine Destruction 3 | . . . . . . . 3 . . . Fabnet Peak Effective % . | . . . . . . . . . . . Robots Rewired . | . . . . . . . . . . . Allies Hacked . | . . . . . . . . . . . Hacks Repelled . | . . . . . . . . . . . Allies | -11 -10 -10 -10 -9 -8 -8 -7 -7 -7 -7 -------- Run | Yrd Mat Min Exi Min Mat Sto Fac Low Low Zio Total Allies 5 | . . 4 . . . 1 . . . . Largest Group 4 | . . 4 4 3 2 1 1 . . . Highest-Rated Group 100 | . . 71 71 40 24 100 100 . . . Highest-Rated Ally 100 | . . 31 31 16 16 100 100 . . . Total Orders . | . . . . . . . . . . . Ally Attacks 48 | . . . . 8 10 30 . . . . Total Damage 1196 | . . . . 77 98 1021 . . . . Kills 15 | . . . . 2 . 13 . . . . Allies Corrupted . | . . . . . . . . . . . Allies Melted . | . . . . . . . . . . . Intel | -11 -10 -10 -10 -9 -8 -8 -7 -7 -7 -7 ------- Run | Yrd Mat Min Exi Min Mat Sto Fac Low Low Zio Robot Analysis Total 1 | . . . . . . 1 . . . . Derelict Logs Recovered 4 | . . 1 . 1 . . . 1 1 . Drone Launches . | . . . . . . . . . . . Drone Recoveries . | . . . . . . . . . . . Exploration | -11 -10 -10 -10 -9 -8 -8 -7 -7 -7 -7 ------------- Run | Yrd Mat Min Exi Min Mat Sto Fac Low Low Zio Turns Passed 7003 | 56 270 921 531 308 379 1141 1355 998 729 315 Spaces Moved 4288 | 43 138 688 319 234 190 778 968 653 214 63 Core 131 | 10 . . . . . . . . 58 63 Treads . | . . . . . . . . . . . Legs 4157 | 33 138 688 319 234 190 778 968 653 156 . Wheels . | . . . . . . . . . . . Hover . | . . . . . . . . . . . Flight . | . . . . . . . . . . . Fastest Speed 50 | 50 120 120 120 120 120 120 120 120 190 500 Average Speed 138 | 103 120 120 120 120 120 120 120 141 307 500 Slowest Speed 500 | 120 120 120 120 190 120 120 120 260 500 500 Overloaded Moves . | . . . . . . . . . . . Propulsion Burnouts . | . . . . . . . . . . . Robots Hopped . | . . . . . . . . . . . Cave-ins Triggered . | . . . . . . . . . . . Exploration Rate (%) 48 | 3 29 98 74 44 22 91 30 79 48 11 Regions Visited 10 Branch Regions 7 Pre-discovered Areas 3 | . . 1 . 1 . . . 1 . . Known Exits Taken 5 | . . . . . 1 1 1 1 1 . Unknown Exits Taken 5 | 1 1 1 1 1 . . . . . . Scrap Searched 5 | . . 1 . 1 . . . 3 . . Spaces Dug . | . . . . . . . . . . . Terrain Destroyed 35 | . . . . . . 8 27 . . . Melee . | . . . . . . . . . . . Projectile 8 | . . . . . . 8 . . . . AOE 27 | . . . . . . . 27 . . . Terrain Rammed . | . . . . . . . . . . . Walls Destroyed . | . . . . . . . . . . . Machines Disabled . | . . . . . . . . . . . Actions | -11 -10 -10 -10 -9 -8 -8 -7 -7 -7 -7 --------- Run | Yrd Mat Min Exi Min Mat Sto Fac Low Low Zio Total 5049 | 52 200 733 467 246 315 937 1107 683 246 63 Wait 436 | . 39 17 147 . 80 75 78 . . . Move 4278 | 42 137 687 318 233 189 777 967 652 213 63 Hop . | . . . . . . . . . . . Pick Up 42 | 4 2 3 . 1 8 11 9 3 1 . Fast Attach 19 | 4 1 . . . 2 8 3 . 1 . Attach 27 | 2 . . . 1 5 5 3 4 7 . Detach 2 | . . . . . . 2 . . . . Swap 24 | . . 1 1 3 4 10 4 1 . . Drop 36 | . . . 1 1 6 20 7 1 . . Fire 185 | . 21 25 . 7 21 29 36 22 24 . Melee . | . . . . . . . . . . . Ram . | . . . . . . . . . . . Kick . | . . . . . . . . . . . Crush . | . . . . . . . . . . . Escape Stasis . | . . . . . . . . . . . Rewire . | . . . . . . . . . . . Trap . | . . . . . . . . . . . Miscellaneous . | . . . . . . . . . . . Route ------- -11/Scrapyard -10/Materials -10/Mines (discovered 3 exits: [*Mat x2] / [*Exi]) -10/Exiles (discovered 2 exits: [*Min x2]) -9/Mines -8/Materials (discovered 2 exits: *Fac / *Sto) -8/Storage (discovered 2 exits: *Fac / *Rec) -7/Factory -7/Lower Caves -7/Lower Caves -7/Zion (discovered 1 exit: [*Pro]) History --------- Turn | Location | Event 4 | -11/Scrapyard | Discovered new exit (range 16) 57 | -11/Scrapyard | Entered Materials 271 | -10/Materials | Discovered new exit (range 14) 306 | -10/Materials | Build established: Mutant 327 | -10/Materials | Entered Mines 380 | -10/Mines | Discovered new exit (range 7) 470 | -10/Mines | Discovered new exit (range 12) 581 | -10/Mines | Found a damaged Exp. Sensor Array with a note attached 586 | -10/Mines | Found Prototype Device 625 | -10/Mines | Learned location of Zion (-7) 734 | -10/Mines | Escorted by a lone wolf Derelict 869 | -10/Mines | Assisted by bots powering up and referring to "LRC-V3" 1232 | -10/Mines | Deemed a non-threat by the Exiles lab entrance 1233 | -10/Mines | Discovered new exit (range 5) 1248 | -10/Mines | Entered Exiles 1248 | -10/Exiles | Accompanied by 4 allies 1266 | -10/Exiles | Discovered new exit (range 15) 1333 | -10/Exiles | Met 8R-AWN 1405 | -10/Exiles | Met EX-HEX 1484 | -10/Exiles | Met EX-BIN 1502 | -10/Exiles | Met EX-DEC 1635 | -10/Exiles | Visited The Gauntlet 1764 | -10/Exiles | Discovered new exit (range 14) 1779 | -10/Exiles | Entered Mines 1779 | -9/Mines | Accompanied by 3 allies 1780 | -9/Mines | Assembled infested the area 1785 | -9/Mines | Assisted by a Guerilla fighting off Assembled 1844 | -9/Mines | Found a hidden stash of uninstalled traps 1935 | -9/Mines | Learned location of Recycling (-8) 2063 | -9/Mines | Discovered new exit (range 10) 2087 | -9/Mines | Entered Materials 2087 | -8/Materials | Accompanied by 2 allies 2087 | -8/Materials | Evolved 4 slots: Propulsion x2, Utility x2 2239 | -8/Materials | Repaired Corrupted Aluminum Leg 2277 | -8/Materials | Repaired Corrupted Aluminum Leg 2315 | -8/Materials | Discovered new exit (range 16) 2390 | -8/Materials | Build established: Scavenger-Mutant 2429 | -8/Materials | Discovered new exit (range 10) 2465 | -8/Materials | Identified exit to Storage 2466 | -8/Materials | Entered Storage 2719 | -8/Storage | Met 01-MTF 2999 | -8/Storage | Discovered new exit (range 16) 3143 | -8/Storage | Central database locked down 3171 | -8/Storage | Build established: Mutant 3225 | -8/Storage | Discovered new exit (range 6) 3228 | -8/Storage | Identified exit to Recycling 3603 | -8/Storage | Identified exit to Factory 3605 | -8/Storage | System corruption reached 10% 3607 | -8/Storage | Entered Factory 3607 | -7/Factory | Accompanied by 1 ally (01-MTF) 3607 | -7/Factory | Evolved 2 slots: Utility x2 3612 | -7/Factory | 01-MTF left 3901 | -7/Factory | Garrison activated, responded to threat 4520 | -7/Factory | Build established: Scavenger-Mutant 4568 | -7/Factory | Cargo convoy interrupted 4807 | -7/Factory | First assault squad dispatched 4949 | -7/Factory | Discovered new exit (range 11) 4961 | -7/Factory | Identified exit to Lower Caves 4962 | -7/Factory | Entered Lower Caves 4964 | -7/Lower Caves | Attracted the attention of an 0b10 checkpoint 4997 | -7/Lower Caves | Lost 3 parts (1n1u1w) 5533 | -7/Lower Caves | Encountered a Warlord checkpoint 5719 | -7/Lower Caves | Lost 3 parts (3n) 5832 | -7/Lower Caves | Discovered new exit (range 11) 5856 | -7/Lower Caves | Identified exit to Lower Caves 5960 | -7/Lower Caves | Entered another Lower Caves area 5987 | -7/Lower Caves | Build established: Mutant 6259 | -7/Lower Caves | Attracted the attention of an 0b10 checkpoint 6363 | -7/Lower Caves | Ambushed by research squad 6423 | -7/Lower Caves | Lost 8 parts (3p1n1u3w) 6519 | -7/Lower Caves | Learned location of 1 exit from Factory 6634 | -7/Lower Caves | Discovered new exit (range 12) 6684 | -7/Lower Caves | Identified exit to Zion 6689 | -7/Lower Caves | Entered Zion 6854 | -7/Zion | Discovered new exit (range 14) 6879 | -7/Zion | Attacked by Zionites 6994 | -7/Zion | Spotted L9-ZT8(B) 6994 | -7/Zion | Spotted 6G-V2U(B) 7004 | -7/Zion | Self-destructed Last Messages --------------- 06693_ System corrupted: Matter fused (-5). 06754_ System corrupted: Component data lost. 06824_ PUBLIC SERVICE ANNOUNCEMENT: Quarantine Array scanned 1 system, cleaned 0. 06828_ System corrupted: Energy discharge (-82). 06854_ EXIT=FOUND 06858_ System corrupted: Energy discharge (-60). 06879_ System corrupted: FCS attempts to trigger Adv. Beam Rifle. 06879_ System corrupted: Adv. Beam Rifle misfires. 06879_ PUBLIC SERVICE ANNOUNCEMENT: Zion is under attack! Defend our home! 06879_ Machine disabled. 06915_ System corrupted: FCS attempts to trigger Adv. Beam Rifle. 06915_ System corrupted: Adv. Beam Rifle misfires. 06951_ M12TUQYOZWVXBSQG28EKJ,B 06968_ System corrupted: Component data lost. 07003_ F5-I10(c) calibrates the System Quarantine Field Array. 07003_ System Quarantine Field Array disabled. Map ----- +----------------------------------------------------+ | ???????????????????????????????????????#?????????? | | ??????????????????????????????????????# #???????? | | ????????????????????????????????????? #??????? | | ????????????????????????????????????? < ##?????? | | ????????????????????????????????????? #?????? | | ????????????????????????????????????? #?????? | | ????????????????????????????????????? ??????? | | ????????????????????????????????????? ???????? | | ?????????????????????????????????????# ????????? | | ?????????????????????????????????????# #????????? | | ?????????????????????????????????##### ####?????? | | ??????????????????????????????#### ## # #?????? | | ??????????????????????????##### #?????? | | ??????????????????????????#!!#" #?????? | | ?????????????????????????##! #??????? | | ?????????????????????????# #??????? | | ?????????????????????????##! " ##?????? | | ??????????????????????????# !##" ## #?????? | | ??????????????????????????###?## #### ##?????? | | ???????????????????????????????## #??## ####???? | | ???????????????????????????????## ##### ##??? | | ???????????????????############# ### #??? | | ???????????????#BB""""""""""""## #### ##??? | | ?????????????### """"""" """"## #### ###???# | | ?????????????# c ## #### ##???# | | ?????????? @ #?## #### | | ?????????? #?## ## | | ?????????????# BB ## #?## # | | ?????????????###BB""""""""""""### ## ## | | ???????????????# """"""""""""#?# #? | | ??????????????????"############?# ## ## | | ????????????????????????????????# ### | | ????????????????????????????????# ## | | ????????????????????????????????# ### | | ????????????????????????????????# ##?# | | ????????????????????????????????# ####?## | | ????????????????????????????????### #????# | | ??????????????????????????????????# ##??# | | ??????????????????????????????????###???# ## | | ???????????????????????????????????????# ?## ## | | ???????????????????????????????????????## #??####? | | ????????????????????????????????????????##???????? | | ?????????????????????????????????????????????????# | | ?????????????????????????????????????????????????# | | ?????????????????????????????????????????????????# | | ?????????????????????????????????????????????????# | | ????????????????????????????????????????????????## | | ????????????????????????????????????????????????# | | ????????????????????????????????????????????????## | | ????????????????????????????????????????????????# | +----------------------------------------------------+ Best States ------------- Heat Dissipation 75 Energy Generation 19 Energy Capacity 315 Matter Stores 300 Matter Capacity 300 Sight Range 16 Terrain Scan Density 10 Armor Coverage 150 Phase Shifting 5 Evasion (%) 60 Targeting Accuracy 6 Core Analysis 9 Particle Charging 15 Item Schematics ----------------- None Robot Schematics ------------------ None Fabricated ------------ Nothing Alien Tech Used ----------------- None Achievements -------------- None Challenges ------------ None Game ------ Seed SurveybotCatalystMeganuke Manual? 0 Play Time 00:36:49 Cumulative 60.8 hours Start 2024.03.19 @ 22:05:23 End 2024.03.19 @ 22:44:26 Sessions 1 Manual Loads 0 Difficulty Rogue Special Mode None Game No. 103 Rogue 87 Adventurer 16 Explorer 0 Win Type - Total 1 Types 1/0/0/0/0/0/0/0/0 Lore% 34 Gallery% 53 Achievement% 47 Wizard Run 0 Options --------- Layout 1 ASCII 0 Keyboard 0 Movement Vi Keybinds 0 Fullscreen 1 Font 20/SmallcapsGlow Map View 64x48 Zoom Use 0% Tactical HUD 1 Map Filters NONE Filters NONE Steam 1 RUN: a0d8e357-b0a1-4192-9ac7-e49b4fc4886a